[Event "1000GM Spring Break Schev-E 2024"]
[Site "San Jose"]
[Date "2024.04.07"]
[Round "5.4"]
[White "Tang, Dylan"]
[Black "Figueredo Losada, Leonel"]
[Result "1/2-1/2"]
[ECO "C54"]
[WhiteElo "2217"]
[BlackElo "2323"]
[Annotator "RC"]
[PlyCount "94"]
[EventDate "2024.03.28"]
[EventType "schev"]
[EventCountry "USA"]
[SourceTitle "playchess.com"]
[Source "ChessBase"]
[SourceQuality "1"]
[TimeControl "5400+30"]

1. e4 {[%emt 0:02:59]} e5 {[%emt 0:04:03]} 2. Nf3 {[%emt 0:00:12]} Nc6 {[%emt 0:00:23]} 3. Bc4 {[%emt 0:00:13]} Nf6 {[%emt 0:00:42]} 4. d3 {[%emt 0:00:10]} Bc5 {[%emt 0:02:04]} 5. c3 {[%emt 0:00:31]} d6 {[%emt 0:00:46]} 6. O-O {[%emt 0:00:29]} a6 {[%emt 0:00:10]} 7. Nbd2 {[%emt 0:00:30]} Ba7 {[%emt 0:00:11]} 8. Bb3 {[%emt 0:02:15]} O-O {[%emt 0:04:16]} 9. h3 {[%emt 0:01:03]} Ne7 {[%emt 0:00:25]} 10. Re1 {[%emt 0:00:35]} Ng6 {[%emt 0:00:05]} 11. Nf1 {[%emt 0:00:49]} h6 {[%emt 0:05:22]} 12. Ng3 {[%emt 0:01:10]} Re8 {[%emt 0:00:19]} 13. d4 {[%emt 0:04:23]} c6 {[%emt 0:05:44]} 14. Bc2 {[%emt 0:04:00]} Be6 {[%emt 0:05:44]} 15. Be3 {[%emt 0:00:34]} Qc7 {[%emt 0:04:56]} 16. Qd2 {[%emt 0:01:58]} Rad8 {[%emt 0:00:32]} 17. Rad1 {[%emt 0:03:25]} b5 {[%emt 0:06:03]} 18. b3 {[%emt 0:08:30]} Bc8 {[%emt 0:05:38]} 19. Bd3 {[%emt 0:03:54]} Bb6 {[%emt 0:02:15]} 20. Qc2 {[%emt 0:07:40]} Qa7 {[%emt 0:00:55]} 21. b4 {[%emt 0:04:21]} a5 {[%emt 0:10:21]} 22. a4 {[%emt 0:04:44]} bxa4 {[%emt 0:05:03]} 23. Ra1 {[%emt 0:07:30]} axb4 {[%emt 0:00:34]} 24. Rxa4 {[%emt 0:00:15]} Qc7 {[%emt 0:00:24]} 25. cxb4 {[%emt 0:01:46]} d5 {[%emt 0:13:18]} 26. dxe5 {[%emt 0:08:03]} Bxe3 {[%emt 0:02:16]} 27. exf6 {[%emt 0:00:48]} Bb6 {[%emt 0:00:27]} 28. Nh5 {[%emt 0:01:43]} Ne5 {[%emt 0:05:28]} 29. Be2 {[%emt 0:02:18]} dxe4 {[%emt 0:00:53]} 30. Nxe5 {[%emt 0:02:03]} Qxe5 {[%emt 0:00:26]} 31. fxg7 {[%emt 0:01:33]} Bf5 {[%emt 0:05:17]} 32. Qxc6 {[%emt 0:02:45]} Re6 {[%emt 0:04:24]} 33. Qb5 {[%emt 0:01:08]} Qc3 {[%emt 0:00:06]} 34. Raa1 {[%emt 0:01:40]} Bg6 {[%emt 0:00:42]} 35. Rad1 {[%emt 0:12:20]} Rb8 {[%emt 0:00:51]} 36. Qd5 {[%emt 0:01:34]} Kh7 {[%emt 0:02:15]} 37. Bg4 {[%emt 0:01:03]} e3 {[%emt 0:00:10]} 38. fxe3 {[%emt 0:00:23]} Rxe3 {[%emt 0:00:03]} 39. Rxe3 {[%emt 0:00:12]} Qxe3+ {[%emt 0:00:04]} 40. Kh1 {[%emt 0:00:16]} Rd8 {[%emt 0:00:56]} 41. Qf3 {[%emt 0:00:55]} Rxd1+ {[%emt 0:01:09]} 42. Qxd1 {[%emt 0:00:01]} Bxh5 {[%emt 0:00:13]} 43. Bxh5 {[%emt 0:00:11]} Kxg7 {[%emt 0:00:15]} 44. Qg4+ {[%emt 0:01:57]} Kf8 {[%emt 0:00:15]} 45. Qc8+ {[%emt 0:02:11]} Kg7 {[%emt 0:00:04]} 46. Qg4+ {[%emt 0:00:16]} Kf8 {[%emt 0:00:04]} 47. Qc8+ {[%emt 0:00:43]} Kg7 {[%emt 0:00:02]} 1/2-1/2

[Event "1000GM Spring Break Schev-E 2024"]
[Site "San Jose"]
[Date "2024.04.07"]
[Round "5.5"]
[White "Atwell, Rose"]
[Black "Alarcon Bahamondez, Roberto Ignacio"]
[Result "1/2-1/2"]
[ECO "B22"]
[WhiteElo "2279"]
[BlackElo "2300"]
[Annotator "RC"]
[PlyCount "44"]
[EventDate "2024.03.28"]
[EventType "schev"]
[EventCountry "USA"]
[SourceTitle "playchess.com"]
[Source "ChessBase"]
[SourceQuality "1"]
[TimeControl "5400+30"]

1. e4 {[%emt 0:00:01]} c5 {[%emt 0:02:55]} 2. Nf3 {[%emt 0:00:06]} e6 {[%emt 0:00:07]} 3. c3 {[%emt 0:00:05]} Nf6 {[%emt 0:00:04]} 4. e5 {[%emt 0:00:05]} Nd5 {[%emt 0:00:04]} 5. g3 {[%emt 0:00:05]} d6 {[%emt 0:01:47]} 6. Bg2 {[%emt 0:02:09]} Nc6 {[%emt 0:04:18]} 7. exd6 {[%emt 0:00:17]} Bxd6 {[%emt 0:01:36]} 8. O-O {[%emt 0:01:04]} O-O {[%emt 0:00:42]} 9. d4 {[%emt 0:00:12]} Nde7 {[%emt 0:08:03]} 10. dxc5 {[%emt 0:09:16]} Bxc5 {[%emt 0:00:38]} 11. Qe2 {[%emt 0:02:47]} Qc7 {[%emt 0:02:08]} 12. Nbd2 {[%emt 0:04:11]} a6 {[%emt 0:06:03]} 13. Ne4 {[%emt 0:08:27]} Ba7 {[%emt 0:02:35]} 14. Rd1 {[%emt 0:00:55]} e5 {[%emt 0:04:58]} 15. Be3 {[%emt 0:07:13]} Bxe3 {[%emt 0:02:24]} 16. Qxe3 {[%emt 0:00:17]} Be6 {[%emt 0:06:19]} 17. Nc5 {[%emt 0:07:22]} Bd5 {[%emt 0:07:00]} 18. Ng5 {[%emt 0:07:35]} Rfd8 {[%emt 0:08:14]} 19. Qd3 {[%emt 0:05:43]} g6 {[%emt 0:08:24]} 20. Bxd5 {[%emt 0:02:01]} Nxd5 {[%emt 0:00:40]} 21. Qf3 {[%emt 0:02:42]} Nb6 {[%emt 0:01:39]} 22. h4 {[%emt 0:09:41]} Qe7 {[%emt 0:00:30]} 1/2-1/2